bitfinex/quotes_BTCUSD_20240927
["timestamp","ask_amount","ask_price","bid_price","bid_amount"]
[1727447069829,0.0801,66405.0,66382.0,0.02272219]
[1727447069830,0.230691,66405.0,66400.0,0.150601]
[1727447070065,0.0801,66405.0,66404.0,0.150593]
[1727447070304,0.0801,66405.0,66388.0,0.32397431]
[1727447070305,0.301188,66404.0,66393.0,0.150618]
[1727447070536,0.23538794,66405.0,66401.0,0.002]
[1727447070809,0.23538794,66405.0,66391.0,0.301243]
[1727447071038,0.150598,66402.0,66397.0,0.150608]
[1727447071280,0.23538794,66405.0,66396.0,0.30122]
[1727447071529,0.15528794,66404.0,66381.0,0.52788408]
[1727447071769,0.15528794,66404.0,66399.0,0.301207]
[1727447072001,0.15528794,66404.0,66392.0,0.301237]
[1727447072002,0.22659808,66401.0,66392.0,0.301237]
[1727447072230,0.0801,66405.0,66397.0,0.006]
[1727447072231,0.30121,66399.0,66397.0,0.006]
[1727447072486,0.30589694,66398.0,66397.0,0.006]
[1727447072721,0.302197,66402.0,66401.0,0.1506]
[1727447072722,0.001,66402.0,66401.0,0.1506]
[1727447073004,0.001,66402.0,66401.0,0.41588794]
[1727447073268,0.001,66402.0,66401.0,0.45837068]
[1727447073530,0.001,66402.0,66401.0,0.46337068]
[1727447073773,0.22659808,66413.0,66412.0,0.150575]
[1727447074020,0.22659808,66413.0,66412.0,0.30586294]
[1727447074285,0.22659808,66422.0,66421.0,0.150554]
[1727447074773,0.076027,66427.0,66426.0,0.150543]
[1727447076821,0.076027,66427.0,66400.0,0.02277634]
[1727447076822,0.0781,66423.0,66400.0,0.02277634]
[1727447077085,0.0781,66423.0,66378.0,0.23659808]
[1727447077086,0.262,66417.0,66415.0,0.22659808]
[1727447077295,0.262,66417.0,66416.0,0.150566]
[1727447078238,0.262,66417.0,66414.0,0.150569]
[1727447078239,0.65949083,66417.0,66414.0,0.150569]
[1727447078478,0.15528794,66416.0,66415.0,0.150568]
[1727447078714,0.65949083,66417.0,66416.0,0.150566]
[1727447078947,0.81477877,66417.0,66416.0,0.150566]
[1727447079422,0.262,66417.0,66416.0,0.150566]
[1727447080371,0.262,66417.0,66412.0,0.150573]
[1727447080372,0.005,66416.0,66412.0,0.150573]
[1727447080637,0.15528794,66415.0,66402.0,0.301195]
[1727447080863,0.15528794,66415.0,66396.0,0.301219]
[1727447080864,0.011,66416.0,66414.0,0.22659808]
[1727447081104,0.011,66416.0,66408.0,0.301164]
[1727447081105,0.011,66416.0,66415.0,0.150568]
[1727447081596,0.262,66417.0,66415.0,0.150568]
[1727447081825,0.262,66417.0,66416.0,0.150566]
[1727447082055,0.264,66417.0,66416.0,0.150566]
[1727447083031,0.0801,66417.0,66416.0,0.150566]
[1727447083259,0.0801,66417.0,66416.0,0.151566]
[1727447083557,0.0781,66417.0,66416.0,0.150566]
[1727447083794,0.000827,66422.0,66421.0,0.150554]
[1727447085474,0.001827,66422.0,66421.0,0.162554]
[1727447086719,0.000827,66422.0,66421.0,0.150554]
[1727447086948,0.001827,66422.0,66421.0,0.006]
[1727447087182,0.190927,66422.0,66421.0,0.015]
[1727447087432,0.34621494,66422.0,66421.0,0.015]
[1727447087685,0.42731494,66422.0,66421.0,0.015]
[1727447087921,0.42631494,66422.0,66421.0,0.159554]
[1727447088159,0.271027,66422.0,66421.0,0.159554]
[1727447088881,0.270527,66422.0,66421.0,0.159554]
[1727447089118,0.269527,66422.0,66421.0,0.150554]
[1727447089897,0.269527,66422.0,66421.0,0.154554]
[1727447089996,0.269527,66422.0,66421.0,0.152554]
[1727447090460,0.270527,66422.0,66421.0,0.155554]
[1727447090941,0.270527,66422.0,66421.0,0.157554]
[1727447091181,0.42581494,66422.0,66421.0,0.007]
[1727447091660,0.57636694,66422.0,66421.0,0.007]
[1727447092622,0.42581494,66422.0,66421.0,0.007]
[1727447093112,0.270527,66422.0,66421.0,0.157554]
[1727447094565,0.082427,66422.0,66421.0,0.157554]
[1727447095965,0.082427,66422.0,66421.0,0.007]
[1727447095966,0.38826694,66422.0,66421.0,0.007]
[1727447096227,0.42651494,66422.0,66421.0,0.007]
[1727447096696,0.57706694,66422.0,66421.0,0.007]
[1727447097178,0.15528794,66422.0,66421.0,0.007]
[1727447097411,0.30583994,66422.0,66421.0,0.007]
[1727447097654,0.30583994,66422.0,66416.0,0.00012]
[1727447097655,0.185563,66417.0,66416.0,0.00012]
[1727447097900,0.185563,66417.0,66398.0,0.301212]
[1727447097901,0.005,66412.0,66398.0,0.301212]
[1727447098140,0.005,66412.0,66400.0,0.301204]
[1727447098141,0.17358,66410.0,66400.0,0.301204]
[1727447098404,0.17358,66410.0,66394.0,0.22659808]
[1727447098405,0.04501565,66416.0,66394.0,0.22659808]
[1727447098635,0.48554271,66414.0,66413.0,0.150572]
[1727447098869,0.22659808,66414.0,66412.0,0.150574]
[1727447099097,0.38188602,66413.0,66395.0,0.00301178]
[1727447099329,0.15528794,66413.0,66411.0,0.150576]
[1727447099567,0.15528794,66413.0,66378.0,0.22659808]
[1727447099568,0.22659808,66412.0,66378.0,0.22659808]
[1727447099798,0.15528794,66411.0,66403.0,0.22659808]
[1727447100035,0.22659808,66410.0,66396.0,0.22659808]
[1727447100271,0.23238794,66409.0,66406.0,0.150588]
[1727447100503,0.45898602,66409.0,66406.0,0.150588]
[1727447100741,0.45898602,66409.0,66408.0,0.150584]
[1727447100742,0.0771,66409.0,66408.0,0.150584]
[1727447100977,0.005,66413.0,66411.0,0.150577]
[1727447100978,0.001,66412.0,66411.0,0.150577]
[1727447101219,0.001,66412.0,66410.0,0.301159]
[1727447101473,0.005,66413.0,66412.0,0.150575]
[1727447101713,0.0797,66417.0,66401.0,0.301198]
[1727447101945,0.15528794,66416.0,66415.0,0.150568]
[1727447103382,0.15528794,66416.0,66388.0,0.2870792]
[1727447103630,0.15528794,66416.0,66383.0,0.002]
[1727447103631,0.15528794,66416.0,66415.0,0.001]
[1727447103868,0.0797,66417.0,66416.0,0.150566]
[1727447104356,0.000828,66422.0,66421.0,0.150554]
[1727447106531,0.000828,66422.0,66421.0,0.145554]
[1727447106782,0.001828,66422.0,66421.0,0.151554]
[1727447107022,0.001828,66422.0,66421.0,0.145554]
[1727447107261,0.001828,66422.0,66421.0,0.30385306]
[1727447107504,0.002828,66422.0,66421.0,0.31185306]
[1727447107761,0.001828,66422.0,66421.0,0.40985306]
[1727447108000,0.000828,66422.0,66421.0,0.40084194]
[1727447109221,0.001828,66422.0,66421.0,0.149554]
[1727447109460,0.001828,66422.0,66421.0,0.157554]
[1727447109461,0.002828,66422.0,66421.0,0.157554]
[1727447109703,0.001828,66422.0,66421.0,0.153554]
[1727447109943,0.001828,66422.0,66421.0,0.150554]
[1727447110206,0.001828,66422.0,66421.0,0.159554]
[1727447110726,0.002828,66422.0,66421.0,0.164554]
[1727447110978,0.001828,66422.0,66421.0,0.159554]
[1727447111216,0.001828,66422.0,66421.0,0.150554]
[1727447111930,0.15711594,66422.0,66421.0,0.150554]
[1727447112171,0.15711594,66422.0,66421.0,0.005]
[1727447112424,0.15711594,66422.0,66412.0,0.301148]
[1727447112425,0.15611594,66422.0,66412.0,0.301148]
[1727447112674,0.150557,66420.0,66414.0,0.150568]
[1727447112966,0.30584794,66419.0,66414.0,0.150569]
[1727447113210,0.081,66421.0,66417.0,0.301127]
[1727447113452,0.081,66421.0,66420.0,0.150557]
[1727447115134,0.000828,66422.0,66421.0,0.150054]
[1727447116858,0.001828,66422.0,66421.0,0.157054]
[1727447117407,0.001828,66422.0,66421.0,0.161054]
[1727447117408,0.002828,66422.0,66421.0,0.161054]
[1727447117975,0.41706057,66422.0,66421.0,0.011]
[1727447118522,0.41706057,66422.0,66421.0,0.161554]
[1727447118788,0.41706057,66422.0,66421.0,0.011]
[1727447119510,0.41706057,66422.0,66421.0,0.161554]
[1727447119756,0.15811594,66422.0,66421.0,0.161554]
[1727447120027,0.002828,66422.0,66421.0,0.161554]
[1727447125825,0.002828,66422.0,66421.0,0.41985286]
[1727447126118,1e-06,66422.0,66421.0,0.50124194]
[1727447126372,1e-06,66422.0,66421.0,0.95838657]
[1727447126622,0.22742508,66435.0,66429.0,0.007]
[1727447126623,0.22659808,66434.0,66429.0,0.007]
[1727447126863,0.22659808,66434.0,66423.0,0.301096]
[1727447126864,0.22659808,66434.0,66433.0,0.255527]
[1727447127144,0.000827,66435.0,66434.0,0.255525]
[1727447127145,1e-06,66435.0,66434.0,0.255525]
[1727447127386,1e-06,66435.0,66434.0,0.48701294]
[1727447127878,1e-06,66435.0,66434.0,0.48901294]
[1727447128118,1e-06,66435.0,66434.0,0.74795757]
[1727447128381,0.001,66444.0,66434.0,0.74795757]
[1727447128382,0.001,66444.0,66443.0,0.250504]
[1727447128580,0.001,66444.0,66443.0,0.40880112]
[1727447128816,0.001,66444.0,66443.0,0.40579194]
[1727447129540,0.001,66444.0,66443.0,0.150504]
[1727447130010,0.001,66444.0,66443.0,0.164504]
[1727447130262,0.001,66444.0,66443.0,0.178504]
[1727447130499,0.001,66444.0,66443.0,0.164504]
[1727447131031,0.001,66444.0,66443.0,0.31979194]
[1727447131557,0.001,66444.0,66443.0,0.30579194]
[1727447131829,0.002,66444.0,66443.0,0.31979194]
[1727447132069,0.002,66444.0,66443.0,0.33379194]
[1727447132609,0.002,66444.0,66443.0,0.164504]
[1727447132888,0.001,66444.0,66443.0,0.164504]
[1727447133135,0.41623257,66444.0,66443.0,0.178504]
[1727447133391,0.41523257,66444.0,66440.0,0.30102]
[1727447133661,0.00434307,66444.0,66443.0,0.164504]
[1727447134963,0.00534307,66444.0,66443.0,0.178504]
[1727447135205,0.00434307,66444.0,66443.0,0.150504]
[1727447135443,0.00634307,66444.0,66443.0,0.150504]
[1727447135977,0.00534307,66444.0,66443.0,0.164504]
[1727447136210,0.08654307,66444.0,66443.0,0.176504]
[1727447136458,0.24183101,66444.0,66443.0,0.176504]
[1727447136697,0.24183101,66444.0,66443.0,0.39110208]
[1727447136698,0.08654307,66444.0,66443.0,0.39110208]
[1727447136938,0.08654307,66444.0,66443.0,0.176504]
[1727447137181,0.08654307,66444.0,66443.0,0.16076006]
[1727447137943,0.08554307,66444.0,66443.0,0.14676006]
[1727447138207,0.08654307,66444.0,66443.0,0.16076006]
[1727447139017,0.08654307,66444.0,66443.0,0.14876006]
[1727447139263,0.08654307,66444.0,66443.0,0.15476006]
[1727447139775,0.08737107,66444.0,66443.0,0.14876006]
[1727447140708,0.08737107,66444.0,66443.0,0.16076006]
[1727447142003,0.150508,66442.0,66437.0,0.150517]
[1727447142246,0.30579894,66441.0,66435.0,0.001656]
[1727447142730,0.39735355,66436.0,66435.0,0.001656]
[1727447143008,0.39735355,66436.0,66425.0,0.22659808]
[1727447143009,0.002,66430.0,66425.0,0.22659808]
[1727447143287,0.17828794,66429.0,66425.0,0.22659808]
[1727447143554,0.17828794,66429.0,66417.0,0.22659808]
[1727447143555,0.0827,66426.0,66417.0,0.22659808]
[1727447143807,0.15528794,66425.0,66417.0,0.22659808]
[1727447144040,0.39735355,66422.0,66418.0,0.150559]
[1727447144320,0.0827,66426.0,66417.0,0.22659808]
[1727447144536,0.0827,66426.0,66425.0,0.150545]
[1727447145248,0.0867,66426.0,66425.0,0.150545]
[1727447145482,0.0827,66426.0,66425.0,0.151545]
[1727447145716,0.0822,66426.0,66425.0,0.151545]
[1727447145950,0.0822,66426.0,66425.0,0.150545]
[1727447146206,0.0822,66426.0,66419.0,0.301116]
[1727447146207,0.0822,66426.0,66420.0,0.301112]
[1727447146687,0.0822,66426.0,66423.0,0.15055]
[1727447146951,0.23748794,66426.0,66422.0,0.301103]
[1727447147190,0.23748794,66426.0,66420.0,0.301112]
[1727447147880,0.38188602,66425.0,66414.0,0.001656]
[1727447148129,0.150552,66422.0,66416.0,0.150564]
[1727447148367,0.150552,66422.0,66414.0,0.001656]
[1727447148368,0.30583994,66422.0,66414.0,0.001656]
[1727447148603,0.15528794,66422.0,66414.0,0.302793]
[1727447148850,0.0822,66426.0,66422.0,0.301102]
[1727447149087,0.0822,66426.0,66414.0,0.001656]
[1727447149333,0.22659808,66424.0,66414.0,0.001656]
[1727447149569,0.23748794,66426.0,66414.0,0.001656]
[1727447149570,0.173552,66422.0,66414.0,0.001656]
[1727447149811,0.32883994,66422.0,66414.0,0.001656]
[1727447150239,0.33083994,66422.0,66414.0,0.001656]
[1727447150493,0.39735355,66413.0,66407.0,0.301169]
[1727447150724,0.39735355,66413.0,66410.0,0.22659808]
[1727447150725,0.0828,66412.0,66410.0,0.22659808]
[1727447150962,0.0828,66412.0,66409.0,0.150581]
[1727447151212,0.15528794,66412.0,66407.0,0.451753]
[1727447151453,0.023,66422.0,66377.0,0.58185355]
[1727447151454,0.22659808,66420.0,66404.0,0.22659808]
[1727447151710,0.22659808,66420.0,66397.0,0.0809]
[1727447151711,0.22659808,66429.0,66427.0,0.150541]
[1727447151956,0.22659808,66429.0,66424.0,0.301095]
[1727447152194,0.22659808,66429.0,66425.0,0.451634]
[1727447152459,0.39735355,66430.0,66420.0,0.301113]
[1727447152700,0.39735355,66430.0,66423.0,0.3011]
[1727447152948,0.15528794,66427.0,66422.0,0.15055]
[1727447153198,0.15528794,66427.0,66422.0,0.150551]
[1727447153438,0.15528794,66427.0,66421.0,0.001656]
[1727447153680,0.023,66426.0,66421.0,0.001656]
[1727447153992,0.15528794,66426.0,66425.0,0.150545]
[1727447154230,0.083,66428.0,66427.0,0.150541]
[1727447155503,0.077,66428.0,66427.0,0.150541]
[1727447155791,0.077,66428.0,66421.0,0.001656]
[1727447155792,0.62964149,66428.0,66421.0,0.302763]
[1727447156015,0.023,66424.0,66421.0,0.001656]
[1727447156265,0.15528794,66423.0,66421.0,0.001656]
[1727447156749,0.15528794,66423.0,66422.0,0.150552]
[1727447156992,0.15528794,66423.0,66421.0,0.001656]
[1727447157226,0.15528794,66423.0,66421.0,0.15221]
[1727447157227,0.55264149,66423.0,66421.0,0.15221]
[1727447157498,0.55264149,66423.0,66421.0,0.000159]
[1727447157739,0.55264149,66423.0,66421.0,0.002159]
[1727447157992,0.55364149,66423.0,66422.0,0.150552]
[1727447158233,0.55364149,66423.0,66421.0,0.152711]
[1727447158474,0.15628794,66423.0,66422.0,0.150552]
[1727447159188,0.001,66423.0,66422.0,0.150552]
[1727447159888,0.077,66428.0,66427.0,0.150541]
[1727447160174,0.22659808,66427.0,66425.0,0.30109]
[1727447160409,0.33598311,66428.0,66425.0,0.30109]
[1727447160655,0.33598311,66428.0,66427.0,0.150541]
[1727447160910,0.077,66428.0,66424.0,0.150546]
[1727447161150,0.15528794,66427.0,66422.0,0.301104]
[1727447161449,0.003,66428.0,66427.0,0.150541]
[1727447161655,0.003,66428.0,66427.0,0.30582894]
[1727447161901,0.22659808,66442.0,66441.0,0.150509]
[1727447162164,0.22659808,66442.0,66441.0,0.30579694]
[1727447162417,0.22659808,66442.0,66441.0,0.150509]
[1727447162656,0.22659808,66442.0,66438.0,0.301029]
[1727447162657,0.00517107,66444.0,66443.0,0.150504]
[1727447164642,0.00617107,66444.0,66443.0,0.150504]
[1727447164879,0.00617107,66444.0,66443.0,0.151504]
[1727447166354,0.00517107,66444.0,66443.0,0.151504]
[1727447166604,0.00517107,66444.0,66443.0,0.155504]
[1727447167071,0.00517107,66444.0,66443.0,0.154504]
[1727447167309,0.00617107,66444.0,66443.0,0.155504]
[1727447168817,0.42044212,66444.0,66443.0,0.005]
[1727447169073,0.85434631,66444.0,66443.0,0.005]
[1727447169292,0.78954412,66444.0,66443.0,0.005]
[1727447169782,0.150528,66433.0,66428.0,0.22659808]
[1727447170025,0.0795,66441.0,66428.0,0.22659808]
[1727447170026,0.15528794,66432.0,66428.0,0.22659808]
[1727447170259,0.15528794,66432.0,66422.0,0.301104]
[1727447170260,0.25898311,66429.0,66422.0,0.301104]
[1727447170504,0.15528794,66428.0,66422.0,0.3011]
[1727447170769,0.15528794,66428.0,66421.0,0.000159]
[1727447170770,0.15528794,66428.0,66423.0,0.15055]
[1727447171250,0.15528794,66428.0,66403.0,0.22659808]
[1727447171251,0.023,66423.0,66403.0,0.22659808]
[1727447171495,0.15528794,66422.0,66415.0,0.22659808]
[1727447171730,0.15528794,66422.0,66403.0,0.22659808]
[1727447171731,0.25898311,66417.0,66416.0,0.150564]
[1727447171963,0.41427105,66417.0,66416.0,0.150564]
[1727447172431,0.2742,66427.0,66406.0,0.301176]
[1727447172432,0.2742,66427.0,66411.0,0.22659808]
[1727447172672,0.22659808,66424.0,66423.0,0.451644]
[1727447173136,0.15528794,66426.0,66425.0,0.150545]
[1727447175832,0.0813,66427.0,66424.0,0.22659808]
[1727447176098,0.001,66426.0,66425.0,0.150545]
[1727447176322,0.001,66426.0,66425.0,0.152201]
[1727447176593,0.22659808,66435.0,66434.0,0.150525]
[1727447177082,0.22659808,66442.0,66425.0,0.001656]
[1727447177330,0.22659808,66442.0,66441.0,0.150509]
[1727447177795,0.00517107,66444.0,66443.0,0.150504]
[1727447178028,0.16045901,66444.0,66443.0,0.150504]
[1727447178268,0.16045901,66444.0,66440.0,0.301023]
[1727447178505,0.16045901,66444.0,66428.0,0.301076]
[1727447178506,0.150511,66441.0,66428.0,0.301076]
[1727447178766,0.301014,66442.0,66434.0,0.150523]
[1727447178767,0.30580094,66440.0,66434.0,0.150523]
[1727447179012,0.30580094,66440.0,66435.0,0.150522]
[1727447179246,0.15528794,66440.0,66432.0,0.301056]
[1727447179482,0.15528794,66440.0,66424.0,0.22659808]
[1727447179483,0.15528794,66440.0,66429.0,0.301071]
[1727447179721,0.25898311,66434.0,66433.0,0.150527]
[1727447180438,0.41427105,66434.0,66429.0,0.301071]
[1727447180742,0.15528794,66433.0,66415.0,0.301133]
[1727447180978,0.15528794,66433.0,66405.0,0.3721]
[1727447180979,0.150534,66430.0,66426.0,0.150542]
[1727447181217,0.15528794,66429.0,66425.0,0.152199]
[1727447181472,0.002,66423.0,66403.0,0.30119]
[1727447181721,0.002,66423.0,66406.0,0.22659808]
[1727447181722,0.023,66416.0,66406.0,0.22659808]
[1727447181974,0.15528794,66422.0,66406.0,0.22659808]
[1727447181975,0.0449683,66420.0,66406.0,0.22659808]
[1727447182214,0.150578,66411.0,66394.0,0.22659808]
[1727447182451,0.023,66415.0,66394.0,0.22659808]
[1727447182452,0.150585,66408.0,66396.0,0.301221]
[1727447182699,0.301153,66412.0,66400.0,0.150601]
[1727447182700,0.15059,66406.0,66400.0,0.150601]
[1727447182971,0.25898311,66401.0,66399.0,0.150604]
[1727447183202,0.25898311,66401.0,66398.0,0.150605]
[1727447183445,0.25898311,66401.0,66394.0,0.301228]
[1727447183693,0.15528794,66400.0,66394.0,0.301228]
[1727447183948,0.15528794,66400.0,66397.0,0.150609]
[1727447184206,0.0449683,66415.0,66396.0,0.22659808]
[1727447184452,0.22659808,66419.0,66397.0,0.22961002]
[1727447184679,0.008,66411.0,66410.0,0.150579]
[1727447184914,0.22659808,66412.0,66411.0,0.150577]
[1727447185148,0.22659808,66412.0,66397.0,0.301216]
[1727447185149,0.22659808,66412.0,66408.0,0.301165]
[1727447185384,0.150569,66415.0,66409.0,0.15058]
[1727447185668,0.22659808,66419.0,66401.0,0.22659808]
[1727447185669,0.15528794,66414.0,66401.0,0.22659808]
[1727447185901,0.006,66408.0,66407.0,0.150586]
[1727447186399,0.25898311,66419.0,66414.0,0.15057]
[1727447186400,0.22659808,66418.0,66414.0,0.15057]
[1727447186638,0.15528794,66417.0,66411.0,0.301153]
[1727447186864,0.15528794,66417.0,66397.0,0.301215]
[1727447187096,0.15528794,66417.0,66403.0,0.22659808]
[1727447187331,0.15528794,66417.0,66398.0,0.00301179]
[1727447187332,0.001,66408.0,66398.0,0.00301179]
[1727447187583,0.001,66408.0,66404.0,0.301184]
[1727447187815,0.001,66408.0,66383.0,0.005]
[1727447187816,0.15528794,66407.0,66382.0,0.301283]
[1727447188054,0.0781,66406.0,66404.0,0.150593]
[1727447188311,0.0781,66406.0,66382.0,0.301283]
[1727447188312,0.15528794,66405.0,66399.0,0.301207]
[1727447188540,0.0781,66406.0,66405.0,0.150591]
[1727447188777,0.22659808,66418.0,66382.0,0.301283]
[1727447188778,0.22659808,66411.0,66404.0,0.301186]
[1727447189017,0.22659808,66411.0,66393.0,0.00301193]
[1727447189261,0.0781,66415.0,66414.0,0.15057]
[1727447189525,0.23338794,66415.0,66414.0,0.15057]
[1727447190033,0.23338794,66415.0,66411.0,0.301154]
[1727447190277,0.23338794,66415.0,66395.0,0.22659808]
[1727447190278,0.0777,66424.0,66402.0,0.22659808]
[1727447190551,0.15528794,66423.0,66422.0,0.150552]
[1727447190820,0.15528794,66423.0,66403.0,0.00301149]
[1727447190821,0.15528794,66423.0,66419.0,0.301116]
[1727447191035,0.15528794,66423.0,66420.0,0.150556]
[1727447191269,0.15528794,66423.0,66420.0,0.301113]
[1727447191521,0.15528794,66423.0,66414.0,0.301137]
[1727447191522,0.150557,66420.0,66414.0,0.150569]
[1727447191769,0.25898311,66417.0,66414.0,0.150569]
[1727447192012,0.41427105,66417.0,66410.0,0.301156]
[1727447192286,0.41427105,66417.0,66416.0,0.150566]
[1727447193008,0.15528794,66417.0,66416.0,0.150566]
[1727447194680,0.15528794,66417.0,66411.0,0.301154]
[1727447194681,0.150567,66416.0,66411.0,0.150576]
[1727447194929,0.023,66415.0,66407.0,0.301172]
[1727447195203,0.023,66415.0,66402.0,0.301192]
[1727447195204,0.023,66411.0,66402.0,0.301192]
[1727447195455,0.023,66411.0,66402.0,0.22659808]
[1727447195456,0.150584,66408.0,66402.0,0.22659808]
[1727447195703,0.45644894,66410.0,66401.0,0.301198]
[1727447195704,0.15528794,66407.0,66401.0,0.301198]
[1727447196060,0.15528794,66407.0,66404.0,0.150591]
[1727447196153,0.15528794,66407.0,66402.0,0.451789]
[1727447196154,0.39765878,66404.0,66402.0,0.451789]
[1727447196391,0.39765878,66404.0,66402.0,0.150597]
[1727447196392,0.15528794,66403.0,66402.0,0.150597]
[1727447196630,0.15528794,66403.0,66395.0,0.52782408]
[1727447196631,0.15528794,66403.0,66399.0,0.150603]
[1727447196866,0.15528794,66403.0,66400.0,0.150601]
[1727447197348,0.15528794,66403.0,66399.0,0.150604]
[1727447197584,0.15528794,66403.0,66397.0,0.150607]
[1727447197834,0.150598,66402.0,66397.0,0.150607]
[1727447198058,0.150598,66402.0,66389.0,0.301252]
[1727447198059,0.15528794,66401.0,66396.0,0.301218]
[1727447198300,0.15528794,66401.0,66398.0,0.150605]
[1727447198815,0.150604,66400.0,66396.0,0.15061]
[1727447199092,0.15528794,66399.0,66397.0,0.001]
[1727447199344,0.15528794,66399.0,66398.0,0.150606]
[1727447199791,0.15528794,66399.0,66398.0,0.152606]
[1727447200017,0.15528794,66399.0,66398.0,0.150606]
[1727447200705,0.079,66409.0,66400.0,0.301203]
[1727447200958,0.102,66409.0,66408.0,0.150584]
[1727447201213,0.301126,66418.0,66400.0,0.301203]
[1727447201214,0.2629,66424.0,66400.0,0.22659808]
[1727447201456,0.2629,66424.0,66415.0,0.150567]
[1727447201457,0.22659808,66419.0,66415.0,0.150567]
[1727447201714,0.22659808,66419.0,66413.0,0.150571]
[1727447201951,0.22659808,66419.0,66398.0,0.001656]
[1727447201952,0.007,66409.0,66398.0,0.001656]
[1727447202193,0.007,66409.0,66403.0,0.30119]
[1727447202445,0.007,66409.0,66398.0,0.001656]
[1727447202446,0.0799,66408.0,66401.0,0.3012]
[1727447202698,0.0799,66408.0,66404.0,0.150592]
[1727447202942,0.0799,66408.0,66399.0,0.301205]
[1727447203171,0.0799,66408.0,66401.0,0.3012]
[1727447203397,0.0799,66408.0,66404.0,0.150592]
[1727447203685,0.0799,66408.0,66398.0,0.004656]
[1727447203686,0.023,66406.0,66399.0,0.301209]
[1727447203915,0.15528794,66405.0,66403.0,0.150595]
[1727447204623,0.023,66403.0,66400.0,0.150601]
[1727447204861,0.023,66403.0,66399.0,0.150604]
[1727447204862,0.30588594,66402.0,66399.0,0.150604]
[1727447205094,0.15528794,66402.0,66399.0,0.150604]
[1727447205340,0.69884678,66404.0,66370.0,0.22659808]
[1727447205341,0.68309002,66400.0,66370.0,0.22659808]
[1727447205591,0.68309002,66400.0,66386.0,0.22659808]
[1727447205592,0.173618,66393.0,66386.0,0.22659808]
[1727447205834,0.0781,66399.0,66395.0,0.301223]
[1727447206060,0.0781,66399.0,66398.0,0.150606]
[1727447206300,0.0731,66399.0,66398.0,0.150606]
[1727447206541,0.0731,66399.0,66396.0,0.301222]
[1727447206542,0.45183,66397.0,66388.0,0.150628]
[1727447206796,0.023,66395.0,66389.0,0.150626]
[1727447207053,0.023,66395.0,66385.0,0.150635]
[1727447207054,0.150618,66393.0,66385.0,0.150635]
[1727447207283,0.30590594,66393.0,66385.0,0.150634]
[1727447207532,0.30590594,66393.0,66384.0,0.301277]
[1727447207758,0.30590594,66393.0,66386.0,0.150633]
[1727447207998,0.31090594,66393.0,66392.0,0.002654]
[1727447208237,0.70856472,66393.0,66392.0,0.002654]
[1727447208472,0.70356472,66393.0,66392.0,0.001654]
[1727447208704,0.70756472,66393.0,66392.0,0.001654]
[1727447208949,0.70756472,66393.0,66369.0,0.301344]
[1727447208950,0.301261,66388.0,66369.0,0.301344]
[1727447209208,0.75114672,66393.0,66380.0,0.22659808]
[1727447209209,0.23728794,66387.0,66380.0,0.22659808]
[1727447209450,0.23728794,66387.0,66372.0,0.301331]
[1727447209451,0.150636,66386.0,66379.0,0.150649]
[1727447209686,0.15528794,66385.0,66376.0,0.30131]
[1727447209918,0.15528794,66385.0,66368.0,0.001658]
[1727447210397,0.15528794,66385.0,66379.0,0.301298]
[1727447210668,0.22659808,66382.0,66377.0,0.301308]
[1727447210913,0.22659808,66382.0,66371.0,0.150667]
[1727447210914,0.150655,66377.0,66371.0,0.150667]
[1727447211156,0.15528794,66381.0,66369.0,0.301342]
[1727447211157,0.15528794,66376.0,66369.0,0.301342]
[1727447211453,0.30594494,66376.0,66370.0,0.150669]
[1727447211697,0.30594494,66376.0,66368.0,0.004658]
[1727447211698,0.15528794,66376.0,66368.0,0.004658]
[1727447211951,0.15528794,66376.0,66369.0,0.001]
[1727447212191,0.383266,66387.0,66369.0,0.001]
[1727447212192,0.22659808,66384.0,66370.0,0.078]
[1727447212445,0.22659808,66384.0,66383.0,0.15064]
[1727447212925,0.15528794,66396.0,66395.0,0.150613]
[1727447213171,0.15528794,66396.0,66377.0,0.003]
[1727447213415,0.15528794,66396.0,66395.0,0.150613]
[1727447213652,0.38188602,66396.0,66395.0,0.150613]
[1727447213887,0.38188602,66396.0,66392.0,0.150619]
[1727447214122,0.38188602,66396.0,66395.0,0.150613]
[1727447214123,0.15528794,66396.0,66395.0,0.150613]
[1727447214358,0.0811,66399.0,66396.0,0.15061]
[1727447214600,0.15528794,66398.0,66397.0,0.150609]
[1727447214832,0.15528794,66398.0,66380.0,0.22659808]
[1727447214833,0.15528794,66398.0,66393.0,0.301234]
[1727447215088,0.15528794,66398.0,66392.0,0.301241]
[1727447215328,0.15528794,66398.0,66397.0,0.150609]
[1727447215572,0.15528794,66398.0,66395.0,0.001]
[1727447216051,0.15352655,66398.0,66396.0,0.15061]
[1727447216292,0.15352655,66398.0,66395.0,0.150613]
[1727447216526,0.15752655,66398.0,66395.0,0.150613]
[1727447216773,0.15752655,66398.0,66393.0,0.301235]
[1727447216774,0.16252655,66398.0,66396.0,0.15061]
[1727447217011,0.150609,66397.0,66391.0,0.301243]
[1727447217244,0.15528794,66396.0,66392.0,0.150618]
[1727447217487,0.25920831,66395.0,66372.0,0.22659808]
[1727447217754,0.15528794,66394.0,66381.0,0.22659808]
[1727447217988,0.15528794,66394.0,66389.0,0.451875]
[1727447218227,0.22659808,66393.0,66391.0,0.150621]
[1727447218462,0.15528794,66394.0,66391.0,0.150621]
[1727447218718,0.15528794,66394.0,66392.0,0.150618]
[1727447219210,0.25920831,66393.0,66392.0,0.150618]
[1727447219499,0.25920831,66393.0,66392.0,0.15062]
[1727447219741,0.41449625,66393.0,66391.0,0.001]
[1727447219977,0.15528794,66392.0,66388.0,0.301258]
[1727447220222,0.15528794,66392.0,66391.0,0.150622]
[1727447220460,0.25920831,66393.0,66392.0,0.15062]
[1727447220698,0.0811,66399.0,66398.0,0.150606]
[1727447220975,0.0811,66399.0,66396.0,0.150611]
[1727447220976,0.22659808,66397.0,66396.0,0.150611]